bitfinex-derivatives/quotes_BNBF0:USTF0_20250710
["timestamp","ask_amount","ask_price","bid_price","bid_amount"]
[1752121511516,1.67344739,671.57,670.45,1.669118]
[1752121511720,1.67344739,671.58,670.45,1.669118]
[1752121512124,1.67344739,671.55,670.49,1.669118]
[1752121512423,0.25926712,671.6,670.52,1.669118]
[1752121513124,0.25926712,671.6,670.51,1.669118]
[1752121514426,0.25926712,671.6,670.5,1.669118]
[1752121515123,0.25926712,671.6,670.49,1.669118]
[1752121515526,0.25926712,671.6,670.07,1.331]
[1752121515527,0.25926712,671.6,670.47,1.669118]
[1752121516028,0.25926712,671.6,670.48,1.669118]
[1752121516429,1.67344739,671.77,670.43,1.669118]
[1752121516725,0.25921305,671.68,670.43,1.669118]
[1752121517228,0.25921305,671.68,670.42,1.669118]
[1752121518128,0.25921305,671.68,670.4,1.669118]
[1752121518324,0.25921305,671.68,670.37,1.669118]
[1752121518528,0.25921305,671.68,670.38,1.669118]
[1752121519225,0.25921305,671.68,670.37,1.669118]
[1752121520128,0.25921305,671.68,670.36,1.669118]
[1752121520330,0.25921305,671.68,670.35,1.669118]
[1752121521229,0.25921305,671.68,670.34,1.669118]
[1752121521431,0.25921305,671.68,670.35,1.669118]
[1752121521931,0.25921305,671.68,670.34,1.669118]
[1752121522431,0.25921305,671.68,670.33,1.669118]
[1752121522828,0.25921305,671.68,670.32,1.669118]
[1752121523828,0.25921305,671.68,670.31,1.669118]
[1752121525133,0.25921305,671.68,670.3,1.669118]
[1752121525334,0.25921305,671.68,670.32,3.738118]
[1752121525532,0.25921305,671.68,670.33,1.669118]
[1752121526031,0.25921305,671.68,670.35,1.669118]
[1752121526233,0.25921305,671.68,670.38,1.669118]
[1752121526433,0.25921305,671.68,670.39,1.669118]
[1752121526635,0.25921305,671.68,670.32,2.069]
[1752121526636,0.25921305,671.68,670.4,1.669118]
[1752121526933,0.25921305,671.68,670.39,1.669118]
[1752121527129,0.25921305,671.68,670.43,1.669118]
[1752121527332,1.67344739,671.98,670.44,1.669118]
[1752121527532,0.2591812,671.76,670.44,1.669118]
[1752121527931,0.2591812,671.76,670.46,1.669118]
[1752121528129,0.2591812,671.76,670.45,1.669118]
[1752121529035,0.2591812,671.76,670.44,1.669118]
[1752121530138,0.2591812,671.76,670.46,1.669118]
[1752121530643,0.2591812,671.76,670.45,1.669118]
[1752121532045,0.2591812,671.76,670.43,1.669118]
[1752121532442,0.2591812,671.76,670.45,1.669118]
[1752121533854,1.67344739,672.11,670.32,2.069]
[1752121534141,0.25915707,671.87,670.32,2.069]
[1752121535343,0.25915707,671.87,670.35,1.669118]
[1752121536545,0.25915707,671.87,670.34,1.669118]
[1752121537045,0.25915707,671.87,670.5,1.669118]
[1752121537246,0.25915707,671.87,670.49,1.669118]
[1752121537449,0.25915707,671.87,670.51,1.669118]
[1752121537645,0.25915707,671.87,670.52,1.669118]
[1752121538848,0.25915707,671.87,670.54,1.669118]
[1752121540149,0.25915707,671.87,670.32,2.069]
[1752121540150,0.25915707,671.87,670.55,1.669118]
[1752121540347,0.25915707,671.87,670.56,1.669118]
[1752121541946,0.25915707,671.87,670.55,1.669118]
[1752121542549,0.25915707,671.87,670.53,1.669118]
[1752121542852,0.25915707,671.87,670.54,1.669118]
[1752121543050,0.25915707,671.87,670.52,1.669118]
[1752121543749,0.25915707,671.87,670.5,1.669118]
[1752121544051,0.25915707,671.87,670.51,1.669118]
[1752121545153,0.25915707,671.87,670.52,1.669118]
[1752121546050,0.25915707,671.87,670.55,1.669118]
[1752121547153,0.25915707,671.87,670.56,1.669118]
[1752121548154,0.25915707,671.87,670.57,1.669118]
[1752121549154,0.25915707,671.87,670.58,1.669118]
[1752121549658,0.25915707,671.87,670.4,1.669118]
[1752121550156,0.25915707,671.87,670.41,1.669118]
[1752121550354,0.25915707,671.87,670.42,1.669118]
[1752121551158,0.25915707,671.87,670.43,1.669118]
[1752121552161,0.25915707,671.87,670.44,1.669118]
[1752121553062,0.25915707,671.87,670.46,1.669118]
[1752121554164,0.25915707,671.87,670.48,1.669118]
[1752121555159,0.25915707,671.87,670.5,1.669118]
[1752121556163,0.25915707,671.87,670.52,1.669118]
[1752121557162,0.25915707,671.87,670.54,1.669118]
[1752121558262,0.25915707,671.87,670.56,1.669118]
[1752121559265,0.25915707,671.87,670.58,1.669118]
[1752121559768,1.67344739,671.82,670.68,1.669118]
[1752121561470,1.67344739,671.77,670.7,1.669118]
[1752121562167,1.67344739,671.73,670.72,1.669118]
[1752121563370,1.67344739,671.68,670.75,1.669118]
[1752121563575,1.67344739,671.67,670.76,1.669118]
[1752121563869,1.67344739,671.68,670.74,1.669118]
[1752121564271,1.67344739,671.67,670.75,1.669118]
[1752121564570,1.67344739,671.69,670.72,1.669118]
[1752121565373,0.25915707,671.87,670.72,1.669118]
[1752121565374,1.67344739,671.68,670.72,1.669118]
[1752121566171,1.67344739,671.66,670.73,1.669118]
[1752121567377,1.67344739,671.6,670.8,1.669118]
[1752121567676,1.67344739,671.59,670.79,1.669118]
[1752121567877,1.67344739,671.58,670.78,1.669118]
[1752121568275,1.67344739,671.56,670.79,1.669118]
[1752121569182,1.67344739,671.54,670.8,1.669118]
[1752121570183,1.67344739,671.54,670.64,2.2363639]
[1752121570184,1.67344739,671.53,670.81,1.669118]
[1752121571310,1.67344739,671.52,670.81,1.669118]
[1752121572185,1.67344739,671.52,670.82,1.669118]
[1752121572485,1.67344739,671.47,670.77,1.669118]
[1752121573581,1.67344739,671.46,670.78,1.669118]
[1752121573784,1.67344739,671.46,670.78,3.383118]
[1752121574382,1.67344739,671.44,670.81,1.669118]
[1752121574583,1.67344739,671.44,670.82,1.669118]
[1752121576286,1.67344739,671.43,670.82,1.669118]
[1752121577091,1.67344739,671.43,670.83,1.669118]
[1752121577387,1.67344739,671.44,670.81,1.669118]
[1752121578297,2.2313631,671.59,670.78,1.714]
[1752121578492,1.6703819,671.44,670.81,1.6639865]
[1752121578793,1.6703819,671.43,670.82,1.6639865]
[1752121579997,0.25915707,671.87,670.8,1.6639865]
[1752121579998,1.6703819,671.45,670.8,1.6639865]
[1752121580398,1.6703819,671.44,670.8,1.6639865]
[1752121581100,1.6703819,671.45,670.79,1.6639865]
[1752121581398,1.6703819,671.44,670.8,1.6639865]
[1752121581698,1.6703819,671.45,670.79,1.6639865]
[1752121582198,1.6703819,671.44,670.8,1.6639865]
[1752121584201,1.6715841,671.55,670.78,1.714]
[1752121585299,1.6715841,671.61,670.78,1.714]
[1752121588301,1.6715841,671.6,670.78,1.714]
[1752121589903,1.6719912,671.6,670.78,1.714]
[1752121594106,1.6719912,671.5,670.86,1.6652464]
[1752121594703,1.6719912,671.56,670.78,1.714]
[1752121595702,1.6719912,671.54,670.81,1.6652464]
[1752121596104,1.6719912,671.53,670.81,1.6652464]
[1752121596504,1.6719912,671.54,670.81,1.6652464]
[1752121597213,1.6719912,671.53,670.81,1.6652464]
[1752121598715,1.6719912,671.53,670.82,1.6652464]
[1752121599210,1.6719912,671.52,670.83,1.6652464]
[1752121599514,1.6719912,671.51,670.84,1.6652464]
[1752121603412,1.6719912,671.51,670.85,1.625]
[1752121604616,1.6719912,671.46,670.92,1.6652464]
[1752121606419,1.6719912,671.47,670.9,1.6652464]
[1752121606719,1.6719912,671.48,670.91,1.6652464]
[1752121610220,1.6719912,671.45,670.94,1.6652464]
[1752121610620,1.6719912,671.46,670.94,1.6652464]
[1752121610921,1.6719912,671.45,670.95,1.6652464]
[1752121616324,1.6719912,671.42,670.99,1.6652464]
[1752121616521,1.6719912,671.41,671.0,1.6652464]
[1752121619225,1.6719912,671.43,670.98,1.6652464]
[1752121619624,1.6719912,671.44,670.96,1.6652464]
[1752121620025,1.6719912,671.39,670.89,1.6652464]
[1752121620522,1.6719912,671.39,670.88,1.6652464]
[1752121621022,1.6719912,671.41,670.85,3.2902464]
[1752121622327,1.6719912,671.41,670.85,1.625]
[1752121623233,1.6719912,671.41,670.85,3.2902464]
[1752121623933,1.6719912,671.4,670.87,1.6652464]
[1752121624628,1.6719912,671.39,670.86,1.6652464]
[1752121625228,1.6719912,671.39,670.85,3.2902464]
[1752121625428,1.6719912,671.39,670.86,1.6652464]
[1752121626932,1.6719912,671.39,670.87,1.6652464]
[1752121627328,1.6719912,671.39,670.86,1.6652464]
[1752121627629,1.6719912,671.39,670.87,1.6652464]
[1752121627929,1.6719912,671.39,670.86,1.6652464]
[1752121629027,1.6719912,671.34,670.85,1.625]
[1752121629431,1.6719912,671.34,670.82,1.6652464]
[1752121630434,1.6719912,671.35,670.81,1.6652464]
[1752121632234,1.6719912,671.36,670.81,1.6652464]
[1752121632434,1.6719912,671.36,670.66,2.2363639]
[1752121632435,1.6719912,671.36,670.8,1.6652464]
[1752121632735,1.6719912,671.36,670.81,2.273]
[1752121633430,1.6719912,671.37,670.81,2.273]
[1752121634534,2.2313631,671.53,670.81,2.273]
[1752121634931,2.2313631,671.52,670.81,2.273]
[1752121640235,2.2313631,671.51,670.81,2.273]
[1752121641338,2.2313631,671.52,670.81,2.273]
[1752121641639,2.2313631,671.51,670.81,2.273]
[1752121642241,2.2313631,671.5,670.81,3.9382464]
[1752121643243,2.2313631,671.47,670.84,1.6652464]
[1752121643640,2.2313631,671.48,670.83,1.6652464]
[1752121644941,2.2313631,671.47,670.83,1.6652464]
[1752121645840,2.2313631,671.52,670.81,2.273]
[1752121646842,2.2313631,671.53,670.81,2.273]
[1752121647038,2.2313631,671.54,670.81,2.273]
[1752121647942,2.2313631,671.55,670.81,2.273]
[1752121648939,2.2313631,671.54,670.81,2.273]
[1752121655851,2.2313631,671.52,670.81,2.273]
[1752121656750,2.2313631,671.5,670.81,3.9378721]
[1752121657050,2.2313631,671.47,670.83,1.6648721]
[1752121657855,2.2313631,671.44,670.85,1.6648721]
[1752121659956,2.2313631,671.47,670.83,1.6648721]
[1752121661759,2.2313631,671.48,670.83,1.6648721]
[1752121662357,2.2313631,671.47,670.83,1.6648721]
[1752121663362,2.2313631,671.47,670.84,1.438]
[1752121665362,2.2313631,671.48,670.84,1.438]
[1752121666266,2.2313631,671.51,670.84,1.438]
[1752121669865,2.2313631,671.5,670.84,1.438]
[1752121670164,0.25915707,671.87,670.84,1.438]
[1752121670165,2.2313631,671.51,670.84,1.438]
[1752121670668,2.2313631,671.52,670.84,1.438]
[1752121671869,2.2313631,671.53,670.84,1.438]
[1752121675170,2.2313631,671.52,670.84,1.438]
[1752121675367,2.2313631,671.52,670.8,1.6659895]
[1752121676167,2.2313631,671.51,670.81,1.6659895]
[1752121676368,3.3470447,671.66,670.81,1.6659895]
[1752121676369,2.2313631,671.5,670.81,1.6659895]
[1752121677170,2.2313631,671.5,670.82,1.6659895]
[1752121678172,2.2313631,671.49,670.82,1.6659895]
[1752121679272,2.2313631,671.48,670.83,1.6659895]
[1752121679473,2.2313631,671.48,670.83,3.3139895]
[1752121679870,2.2313631,671.48,670.84,1.6659895]
[1752121680169,2.2313631,671.47,670.84,1.6659895]
[1752121680674,2.2313631,671.46,670.85,1.6659895]
[1752121681576,2.2313631,671.42,670.88,1.6659895]
[1752121681971,2.2313631,671.44,670.87,1.6659895]
[1752121682171,2.2313631,671.45,670.86,1.6659895]
[1752121682570,2.2313631,671.5,670.83,1.648]
[1752121686372,2.2313631,671.49,670.83,3.3160346]
[1752121687674,2.2313631,671.48,670.83,3.3160346]
[1752121688278,2.2313631,671.48,670.84,1.6680346]
[1752121688878,2.2313631,671.49,670.83,3.3160346]
[1752121691079,3.3470447,671.65,670.84,1.6680346]
[1752121691080,2.2313631,671.48,670.84,1.6680346]
[1752121691379,2.2313631,671.47,670.84,1.6680346]
[1752121694480,1.6749068,671.31,670.84,1.6680346]
[1752121696078,1.6749068,671.31,670.85,1.6680346]
[1752121697879,1.6749068,671.31,670.84,1.6680346]
[1752121698483,1.6749068,671.31,670.85,1.6680346]
[1752121700980,1.6749068,671.3,670.86,1.6680346]
[1752121701284,1.6749068,671.27,670.9,1.6680346]
[1752121701785,1.6749068,671.29,670.88,1.6680346]
[1752121703685,1.6749068,671.3,670.86,1.6680346]
[1752121707286,1.6749068,671.3,670.87,1.957]
[1752121708689,1.6749068,671.3,670.87,3.6250346]
[1752121711492,1.6749068,671.29,670.87,3.6250346]
[1752121711791,1.6749068,671.28,670.88,1.6680346]
[1752121711991,1.6749068,671.28,670.89,1.6680346]
[1752121712193,1.6749068,671.29,670.87,3.6250346]
[1752121712694,1.6749068,671.3,670.87,1.957]
[1752121713492,1.6749068,671.29,670.88,1.6680346]
[1752121718494,1.6749068,671.28,670.89,1.6680346]
[1752121719800,1.6749068,671.28,670.88,1.6680346]
[1752121720102,1.6749068,671.28,670.89,1.6680346]
[1752121720500,1.6749068,671.29,670.89,1.6680346]
[1752121721901,1.6749068,671.28,670.9,1.6680346]
[1752121722602,1.6749068,671.26,670.93,1.6680346]
[1752121724601,2.2313631,671.38,670.93,1.6680346]
[1752121725002,2.2313631,671.37,670.93,1.6680346]
[1752121727406,2.2313631,671.38,670.93,1.6680346]
[1752121728212,2.2313631,671.37,670.93,1.6680346]
[1752121729211,2.2313631,671.38,670.94,1.6680346]
[1752121731211,2.2313631,671.38,670.93,1.6680346]
[1752121731411,2.2313631,671.39,670.93,1.6680346]
[1752121732610,2.2313631,671.43,670.9,1.6680346]
[1752121732813,2.2313631,671.46,670.93,1.6680346]
[1752121733311,2.2313631,671.47,670.93,1.6680346]
[1752121734409,2.2313631,671.47,670.92,1.6680346]
[1752121735309,2.2313631,671.48,670.92,1.6680346]
[1752121737913,2.2313631,671.48,670.87,1.957]
[1752121737914,2.2313631,671.49,670.91,1.6680346]
[1752121739315,2.2313631,671.49,670.9,1.6680346]
[1752121741416,2.2313631,671.49,670.91,1.6680346]
[1752121741616,2.2313631,671.5,670.9,1.6680346]
[1752121741815,2.2313631,671.48,670.92,1.6680346]
[1752121742517,2.2313631,671.47,670.92,1.6680346]
[1752121743315,2.2313631,671.48,670.91,1.6680346]
[1752121746919,2.2313631,671.48,670.87,1.957]
[1752121746920,2.2313631,671.5,670.9,1.6680346]
[1752121747821,2.2313631,671.49,670.91,1.6680346]
[1752121749522,2.2313631,671.5,670.9,1.6680346]
[1752121751522,2.2313631,671.57,670.91,1.6680346]
[1752121752827,2.2313631,671.61,670.95,1.6680346]
[1752121753427,2.2313631,671.62,670.95,1.6680346]
[1752121753628,2.2313631,671.63,670.94,1.6680346]
[1752121753829,2.2313631,671.63,670.96,1.824]
[1752121755328,2.2313631,671.64,670.96,1.824]
[1752121756231,2.2313631,671.63,670.96,1.824]
[1752121757332,2.2313631,671.64,670.96,1.824]
[1752121759033,2.2313631,671.63,670.96,1.824]
[1752121759738,2.2313631,671.62,670.96,1.824]
[1752121762638,2.2313631,671.63,670.96,1.824]
[1752121763338,2.2313631,671.62,670.96,1.824]
[1752121764840,2.2313631,671.65,670.96,1.824]
[1752121765038,2.2313631,671.64,670.96,1.824]
[1752121765842,2.2313631,671.66,670.96,1.824]
[1752121766043,2.2313631,671.67,670.96,1.824]
[1752121766843,2.2313631,671.68,670.96,1.824]
[1752121767539,2.2313631,671.67,670.96,1.824]
[1752121768144,2.2313631,671.68,670.96,1.824]
[1752121769147,2.2313631,671.67,670.96,1.824]
[1752121770246,2.2313631,671.68,670.96,1.824]
[1752121770546,2.2313631,671.67,670.96,1.824]
[1752121772350,2.2313631,671.69,670.96,1.824]
[1752121772549,2.2313631,671.68,670.96,1.824]
[1752121775949,2.2313631,671.7,670.96,1.824]
[1752121776349,2.2313631,671.73,670.96,3.4920346]
[1752121776549,2.2313631,671.74,670.96,3.4920346]
[1752121777146,2.2313631,671.73,670.96,3.4920346]
[1752121777446,2.2313631,671.74,670.96,1.824]
[1752121778051,2.2313631,671.74,670.96,3.4920346]
[1752121778851,2.2313631,671.74,670.96,1.824]
[1752121779149,2.2313631,671.74,670.96,3.4920346]
[1752121779353,2.2313631,671.74,670.96,1.824]
[1752121780347,2.2313631,671.75,670.96,1.824]
[1752121784560,2.2313631,671.82,670.96,1.824]
[1752121787863,2.2313631,671.81,670.96,1.824]
[1752121789067,2.2313631,671.8,670.96,1.824]
[1752121789862,2.2313631,671.8,670.9,1.6627142]
[1752121792970,2.2313631,671.8,670.91,1.818]
[1752121794367,2.2313631,671.74,670.95,1.6627142]
[1752121795171,2.2313631,671.76,670.94,1.6627142]
[1752121795372,2.2313631,671.74,670.95,1.6627142]
[1752121800072,2.2313631,671.75,670.95,1.6627142]
[1752121801373,2.2313631,671.74,670.95,1.6627142]
[1752121801773,2.2313631,671.74,670.91,1.818]
[1752121801774,2.2313631,671.75,670.94,1.6627142]
[1752121802070,2.2313631,671.74,670.95,1.6627142]
[1752121802673,2.2313631,671.73,670.96,1.6627142]
[1752121803876,2.2313631,671.72,670.97,1.6627142]
[1752121804378,2.2313631,671.71,670.97,1.6627142]
[1752121805077,2.2313631,671.7,670.99,1.6627142]
[1752121805372,2.2313631,671.69,670.99,1.6627142]
[1752121807278,2.2313631,671.72,670.97,1.6627142]
[1752121807679,2.2313631,671.71,670.97,1.6627142]
[1752121807975,2.2313631,671.71,670.98,1.6627142]
[1752121809376,2.2313631,671.7,670.98,1.6627142]
[1752121809980,2.2313631,671.7,670.99,1.6627142]
[1752121810175,2.2313631,671.71,670.98,1.6627142]
[1752121810481,2.2313631,671.7,670.98,1.6627142]
[1752121811181,2.2313631,671.69,670.99,1.6627142]
[1752121812378,2.2313631,671.68,670.99,1.6627142]
[1752121813779,2.2313631,671.69,670.99,1.6627142]
[1752121814278,2.2313631,671.68,670.99,1.6627142]
[1752121815183,2.2313631,671.68,671.0,2.244]
[1752121816082,2.2313631,671.68,671.0,3.9067142]
[1752121817284,2.2313631,671.65,671.02,1.6627142]
[1752121818582,2.2313631,671.64,671.03,1.6627142]
[1752121819986,2.2313631,671.62,671.05,1.6627142]
[1752121820488,2.2313631,671.61,671.06,1.6627142]
[1752121823389,2.2313631,671.6,671.06,1.6627142]
[1752121824291,2.2313631,671.6,671.07,1.6627142]
[1752121824486,2.2313631,671.6,671.06,1.6627142]
[1752121824885,2.2313631,671.6,671.07,1.6627142]
[1752121825490,2.2313631,671.65,671.03,1.6627142]
[1752121828092,2.2313631,671.64,671.03,1.6627142]
[1752121829091,2.2313631,671.64,671.0,2.244]
[1752121829291,2.2313631,671.7,671.0,2.244]
[1752121830093,2.2313631,671.71,671.0,2.244]
[1752121832294,2.2313631,671.73,671.0,2.244]
[1752121832494,2.2313631,671.72,671.0,2.244]
[1752121834091,2.2313631,671.69,671.0,3.9067142]
[1752121834293,2.2313631,671.67,671.02,1.6627142]
[1752121835393,2.2313631,671.66,671.02,1.6627142]
[1752121835694,2.2313631,671.61,671.06,1.6627142]
[1752121835897,2.2313631,671.6,671.07,1.6627142]
[1752121836497,2.2313631,671.58,671.09,1.6627142]
[1752121836793,2.2313631,671.58,671.08,1.6627142]
[1752121837395,2.2313631,671.58,671.09,1.495]
[1752121837699,2.2313631,671.59,671.09,1.495]
[1752121838494,2.2313631,671.6,671.09,1.495]
[1752121838698,2.2313631,671.59,671.09,1.495]
[1752121840104,2.2313631,671.58,671.09,1.495]
[1752121840301,2.2313631,671.58,671.09,3.1577142]
[1752121840599,0.25913681,671.83,671.09,1.495]
[1752121840600,2.2313631,671.59,671.09,1.495]
[1752121841898,2.2313631,671.62,671.09,1.495]
[1752121842401,2.2313631,671.65,671.09,1.495]
[1752121843003,2.2313631,671.64,671.09,1.495]
[1752121843203,2.2313631,671.66,671.09,1.495]
[1752121843600,2.2313631,671.64,671.09,1.495]
[1752121844999,2.2313631,671.61,671.09,1.495]
[1752121845304,2.2313631,671.64,671.09,1.495]
[1752121845500,2.2313631,671.63,671.09,1.495]
[1752121846904,2.2313631,671.64,671.09,1.495]
[1752121849203,2.2313631,671.65,671.09,1.495]
[1752121849906,2.2313631,671.64,671.09,1.495]
[1752121850102,2.2313631,671.62,671.09,1.495]
[1752121851504,2.2313631,671.64,671.09,1.495]
[1752121853706,2.2313631,671.67,671.09,1.495]
[1752121856412,2.2313631,671.66,671.09,1.495]
[1752121858313,3.3470447,671.82,671.09,1.495]
[1752121858314,2.2313631,671.67,671.09,1.495]
[1752121860714,2.2313631,671.68,671.09,1.495]
[1752121861510,2.2313631,671.67,671.09,1.495]
[1752121862611,2.2313631,671.66,671.09,1.495]
[1752121863218,2.2313631,671.67,671.09,1.495]
[1752121863613,2.2313631,671.64,671.09,1.495]
[1752121863916,2.2313631,671.63,671.09,1.495]
[1752121865112,2.2313631,671.62,671.09,1.495]
[1752121868622,2.2313631,671.61,671.09,1.495]
[1752121869022,2.2313631,671.6,671.09,1.495]
[1752121870521,2.2313631,671.57,671.1,1.6627142]
[1752121870822,2.2313631,671.6,671.09,1.495]
[1752121871423,2.2313631,671.6,671.07,1.6627142]
[1752121875227,2.2313631,671.6,671.08,1.732]
[1752121876423,2.2313631,671.64,671.08,1.732]
[1752121880927,2.2313631,671.63,671.08,1.732]
[1752121882527,2.2313631,671.64,671.08,1.732]
[1752121884032,2.2313631,671.63,671.08,1.732]
[1752121884933,2.2313631,671.64,671.08,1.732]
[1752121886230,2.2313631,671.6,671.08,3.3947142]
[1752121887632,2.2313631,671.59,671.09,1.6627142]
[1752121888435,2.2313631,671.58,671.09,1.6627142]
[1752121890038,2.2313631,671.58,671.1,1.6627142]
[1752121890738,2.2313631,671.58,671.09,1.6627142]
[1752121890939,2.2313631,671.59,671.09,1.6627142]
[1752121891341,2.2313631,671.6,671.08,3.3947142]
[1752121891636,2.2313631,671.65,671.08,1.732]
[1752121892236,2.2313631,671.66,671.08,1.732]
[1752121892435,0.25913681,671.83,671.08,1.732]
[1752121892436,2.2313631,671.67,671.08,1.732]
[1752121892941,2.2313631,671.68,671.08,1.732]
[1752121893644,2.2313631,671.65,671.08,1.732]
[1752121894743,2.2313631,671.66,671.08,1.732]
[1752121896839,2.2313631,671.65,671.08,1.732]
[1752121899143,2.2313631,671.66,671.08,1.732]
[1752121900446,2.2313631,671.68,671.08,1.732]
[1752121900746,2.2313631,671.67,671.08,1.732]
[1752121903349,2.2313631,671.66,671.08,1.732]
[1752121903648,2.2313631,671.65,671.08,1.732]
[1752121904749,2.2313631,671.64,671.08,1.732]
[1752121905152,2.2313631,671.67,671.08,1.732]
[1752121909048,2.2313631,671.66,671.08,1.732]
[1752121910250,2.2313631,671.64,671.08,1.732]
[1752121914563,2.2313631,671.66,671.08,1.732]
[1752121915066,2.2313631,671.62,671.08,1.732]
[1752121915365,2.2313631,671.63,671.08,1.732]
[1752121916268,2.2313631,671.64,671.08,1.732]
[1752121918366,2.2313631,671.63,671.08,1.732]
[1752121922171,2.2313631,671.65,671.08,1.732]
[1752121924374,2.2313631,671.64,671.08,1.732]
[1752121925171,2.2313631,671.63,671.08,1.732]
[1752121925971,2.2313631,671.62,671.08,1.732]
[1752121926271,2.2313631,671.62,671.08,3.3947142]
[1752121927372,2.2313631,671.62,671.08,1.6627142]
[1752121928772,2.2313631,671.63,671.07,1.6627142]
[1752121929977,2.2313631,671.63,671.08,2.14]
[1752121930177,2.2313631,671.63,671.08,3.8027142]
[1752121932274,2.2313631,671.61,671.09,1.6627142]
[1752121937280,2.2313631,671.6,671.09,1.6627142]
[1752121938181,2.2313631,671.6,671.1,1.6627142]
[1752121938786,2.2313631,671.59,671.11,1.6627142]
[1752121938986,2.2313631,671.58,671.12,1.6627142]
[1752121939888,2.2313631,671.57,671.12,1.6627142]
[1752121943690,2.2313631,671.59,671.1,1.6627142]
[1752121944292,2.2313631,671.63,671.08,2.14]
[1752121944991,2.2313631,671.64,671.08,2.14]
[1752121946192,2.2313631,671.65,671.08,2.14]
[1752121946894,2.2313631,671.64,671.08,2.14]
[1752121952799,2.2313631,671.65,671.08,2.14]
[1752121953797,2.2313631,671.64,671.08,2.14]
[1752121954299,2.2313631,671.62,671.08,2.14]
[1752121955001,2.2313631,671.62,671.07,1.6627142]
[1752121956105,2.2313631,671.61,671.08,1.6627142]
[1752121957301,2.2313631,671.62,671.07,1.6627142]
[1752121958204,2.2313631,671.61,671.08,1.6627142]
[1752121958404,2.2313631,671.62,671.07,1.6627142]
[1752121958706,2.2313631,671.62,671.08,2.17]
[1752121961011,2.2313631,671.62,671.08,3.8363518]
[1752121962512,2.2313631,671.63,671.08,2.17]
[1752121962711,2.2313631,671.61,671.08,3.8363518]
[1752121964209,2.2313631,671.62,671.08,3.8363518]
[1752121964713,2.2313631,671.62,671.08,2.17]
[1752121964909,2.2313631,671.62,671.08,3.8363475]
[1752121965209,2.2313631,671.62,671.08,2.17]
[1752121965618,2.2313631,671.62,671.08,3.8363475]
[1752121966218,3.3470447,671.75,671.08,2.17]
[1752121966219,2.2313631,671.61,671.08,2.17]
[1752121966415,2.2313631,671.61,671.08,3.8363475]
[1752121967919,2.2313631,671.61,671.08,2.17]
[1752121968120,2.2313631,671.62,671.08,2.17]
[1752121972321,2.2313631,671.61,671.08,3.8363475]
[1752121975520,2.2313631,671.63,671.08,2.17]
[1752121976425,3.3470447,671.78,671.08,2.17]
[1752121976427,2.2313631,671.64,671.08,2.17]
[1752121977628,2.2313631,671.63,671.08,2.17]
[1752121979829,2.2313631,671.62,671.08,2.17]
[1752121983028,2.2313631,671.63,671.08,2.17]
[1752121985335,2.2313631,671.61,671.08,2.17]
[1752121985634,2.2313631,671.61,671.08,3.8363475]
[1752121986336,2.2313631,671.6,671.09,1.6663475]
[1752121992437,2.2313631,671.6,671.1,2.48]
[1752121992841,2.2313631,671.59,671.1,4.1463475]
[1752121993040,2.2313631,671.58,671.1,4.1463475]
[1752121993237,2.2313631,671.57,671.12,1.6663475]
[1752121993441,2.2313631,671.58,671.1,4.1463475]
[1752121995538,2.2313631,671.59,671.1,4.1463475]
[1752121996242,2.2313631,671.62,671.1,2.48]
[1752122000038,2.2313631,671.63,671.1,2.48]
[1752122003444,2.2313631,671.62,671.1,2.48]
[1752122005946,2.2313631,671.59,671.1,4.14667]
[1752122007047,2.2313631,671.58,671.1,4.14667]
[1752122007843,2.2313631,671.64,671.1,4.14667]
[1752122008147,2.2313631,671.64,671.1,2.48]
[1752122012247,2.2313631,671.63,671.1,2.48]
[1752122013346,2.2313631,671.64,671.1,2.48]
[1752122017152,2.2313631,671.65,671.1,2.48]
[1752122017853,2.2313631,671.61,671.1,2.48]
[1752122018253,2.2313631,671.6,671.1,2.48]
[1752122020361,2.2313631,671.61,671.1,2.48]
[1752122021055,2.2313631,671.6,671.1,2.48]
[1752122025462,2.2313631,671.62,671.1,2.48]
[1752122026262,2.2313631,671.63,671.1,2.48]
[1752122027062,2.2313631,671.62,671.1,2.48]
[1752122028462,2.2313631,671.63,671.1,2.48]
[1752122033874,2.2313631,671.65,671.1,2.48]
[1752122035275,2.2313631,671.63,671.1,2.48]
[1752122035875,2.2313631,671.64,671.1,2.48]
[1752122036072,2.2313631,671.63,671.1,2.48]
[1752122038477,2.2313631,671.62,671.1,2.48]